{"text_format":"1","workbook":"xlsx","n_sheets":5,"sheets":["Instructions","ACR ","Board Result","Sheet1","Sheet4"],"not_rendered":{"charts":0,"images":1,"macros":1,"external_links":2,"defined_names":35,"comments":0,"pivot_tables":0},"unopened":[],"bounds":{"document_bytes":16777216,"sheet_cells":100000,"rows_first":2000,"rows_last":500,"rows_between":2000,"halvings":0,"cell_chars":16384,"cell_head_chars":4096},"cells_cut":0,"cells_raw":0,"read":"whole","date_system":"1900"}

{"sheet":"Instructions","index":0,"n_rows":16,"n_cols":2,"rows_kept":16,"cut":false,"hidden":false,"merged":[[0,0,0,1]]}
["ey.sI.Awr Brn leI jrrI hdwieqW"]
[1,"quhwfy kMipaUtr qy AnmolilpI PONt hoxw cwhIdw hY (USE Anmolipi Font)"]
[2,"AyYksl 2010 jW ies qoN aupr dw AwiPs dI vrqoN krO"]
[3,"PwieL Kulx qy Enabed Content And Enable Editing btn jo aupr tUlbwr dy hyTw nzr Awvygw aus nUM kil`k krO qW hI shI Awautpu`t AwvygI . jy Aijhw krn qoN rih igAw qW Pweil nUM dubwrw bMd krky aupn kro"]
[4,"qsI Fill ACR sIt qy  kil`k krky auQy isrP pIly Kwny hI Brny hn"]
[5,"Awpxw fwtw iP`l krn qo bwAd iesy swPt kwpI Pwiel qy mu`KI qo nMbr lgvw skdy ho"]
[6,"lwst ivc qusI pIfI.AYP dy rUp ivc syv kr skdy ho"]
[7,"ipRMt k`Fx leI hryk puj leI pyj vwiej rwiet swief btn idqy hn (qW jo pyj dy A`gy ipCy ipMRt k`Fy jw skx_"]
[8,"qusI iksy qrW dy suJwA Aqy PIfbYk leI eImyl AweI. abhi072011@gmail.com qy spMrk kr skdy ho"]
[7,"iesy qrW dy hor swPtvyAr Pwrm Aid pRwpq krn leI swfI vYbswiet nUM ivijt kro "]
[8,"Subscribe Our Youtube Channel for Details Video"]
[9,"Follow Us On Facebook"]
[]
[]
[]
[null," "]

{"sheet":"ACR ","index":1,"n_rows":156,"n_cols":17,"rows_kept":156,"cut":false,"hidden":false,"merged":[[58,14,61,14],[88,14,93,14],[94,14,97,14],[101,14,104,14],[98,13,99,13],[1,3,1,14],[2,3,2,14],[11,4,11,6],[11,7,11,9],[13,10,13,11],[13,12,13,14],[12,4,12,9],[12,10,12,14],[68,4,68,11],[50,4,50,14],[51,13,51,14],[52,13,52,14],[53,4,53,14],[42,4,42,9],[42,12,45,14],[43,4,43,8],[44,5,44,8],[17,4,17,9],[73,4,73,11],[77,4,77,11],[78,4,78,11],[79,4,79,11],[57,4,57,11],[67,4,67,11],[65,4,65,11],[66,4,66,11],[69,4,69,11],[70,4,70,11],[71,4,71,11],[37,12,41,14],[3,3,3,9],[3,10,3,11],[3,12,3,14],[128,3,140,3],[129,4,130,7],[129,9,129,14],[130,9,130,14],[133,4,134,7],[133,9,133,14],[134,9,134,14],[137,4,138,7],[137,9,137,14],[138,9,138,14],[140,4,140,14],[80,4,80,11],[127,4,127,14],[82,4,82,11],[83,4,83,11],[10,4,10,6],[10,7,10,9],[74,4,74,11],[75,4,75,11],[76,4,76,11],[6,4,6,5],[18,4,18,9],[18,10,18,14],[14,4,14,9],[6,6,6,9],[15,10,15,14],[4,3,4,5],[6,10,6,11],[13,4,13,6],[13,7,13,9],[11,10,11,11],[11,12,11,14],[10,10,10,11],[10,12,10,14],[7,4,7,9],[7,10,7,14],[8,4,8,9],[8,10,8,14],[9,4,9,9],[6,12,6,14],[9,10,9,14],[14,10,14,14],[15,4,15,9],[17,10,17,14],[0,3,0,5],[55,3,55,14],[64,4,64,11],[62,4,62,11],[47,4,47,14],[0,6,0,14],[58,4,58,11],[59,4,59,11],[19,10,19,14],[23,4,23,14],[24,4,24,14],[20,4,20,9],[20,10,20,14],[21,4,21,8],[33,10,33,14],[34,4,34,7],[34,9,34,14],[35,3,35,8],[16,4,16,9],[16,10,16,14],[37,4,37,9],[4,6,4,14],[5,4,5,9],[5,10,5,14],[58,3,61,3],[19,4,19,9],[27,14,32,14],[32,5,32,8],[60,4,60,11],[61,4,61,11],[84,4,84,11],[64,14,69,14],[64,13,69,13],[70,14,75,14],[70,13,75,13],[76,14,79,14],[80,14,81,14],[82,14,85,14],[85,4,85,11],[38,3,41,3],[38,4,38,8],[39,4,39,8],[81,4,81,11],[56,3,56,14],[45,5,45,8],[72,4,72,11],[51,4,51,12],[52,4,52,12],[86,4,86,11],[87,4,87,11],[88,4,88,11],[89,4,89,11],[90,4,90,11],[91,4,91,11],[92,4,92,11],[93,4,93,11],[94,4,94,11],[125,3,125,14],[124,7,124,11],[119,4,119,13],[112,4,112,11],[113,4,113,11],[114,4,114,11],[115,4,115,11],[116,4,116,11],[117,4,117,11],[118,4,118,11],[110,3,113,3],[110,4,110,11],[111,4,111,11],[124,12,124,13],[62,14,63,14],[98,14,100,14],[105,14,107,14],[110,13,113,13],[110,14,113,14],[120,3,120,14],[122,3,122,11],[122,12,122,13],[123,3,123,13],[105,4,105,11],[106,4,106,11],[107,4,107,11],[108,4,108,11],[109,4,109,11],[105,13,107,13],[95,4,95,11],[96,4,96,11],[97,4,97,11],[98,4,98,11],[99,4,99,11],[101,4,101,11],[102,4,102,11],[103,4,103,11],[104,4,104,11]]}
[]
[null,null,null,"AMgryzI/ smwijk ivigAwn mwstr kwfr dI slwnw mulWkx irport \n(ey.sI.Awr.-15)"]
[null,null,null,"swl : 2022-23"]
[null,null,null,"Bwg - a   mu~FlI jwxkwrI",null,null,null,null,null,null,"XU fweIs kof :  "]
[null,null,null,"skUl dw nW Aqy ijlHw :  ",null,null,"srkwrI hweI skUl,  luiDAwxw"]
[null,null,null,1,"AiDAwpk /AiDAwpkw dw nW"]
[null,null,null,2,"Ahudw",null,null,null,null,null,"E-Punjab ID No. :"]
[null,null,null,3,"ipqw dw nW"]
[null,null,null,4,"ilMg (iesqrI / purS)"]
[null,null,null,5,"jnm imqI"]
[null,null,null,6,"ADwr kwrf nMbr",null,null,null,null,null,"pYn nM:"]
[null,null,null,7,"spMrk nMbr :   mobwiel nM:",null,null,null,null,null,"eI.myl AweI.fI."]
[null,null,null,8,"mu~FlI qnKwh / gRyf py",null,null,null,null,null,"10300-34800 + 5000"]
[null,null,null,9,"sInIAwrqw nMbr",null,null,null,null,null,"jI.pI.AYP.nM:/prwn"]
[null,null,null,10,"syvw kwfr (styt/ijlHw/jW hor)",null,null,null,null,null,"sytyt"]
[null,null,null,11,"is~iKAw ivBwg iv~c hwzr hox dI imqI"]
[null,null,null,12,"mOjUdw kwfr qy hwzr hox dI imqI"]
[null,null,null,13,"mOjUdw stySn qy hwzr hox dI imqI"]
[null,null,null,14,"syvw mukq hox dI imqI"]
[null,null,null,15,"ividAk Xogqw"]
[null,null,null,16,"irport krn vwly AiDkwrI ADIn syvw krn dw smW kwl"]
[null,null,null,17,"AiDAwpk v~loN kYlMfr swl iv`c leIAW Cu~tIAW: ",null,null,null,null,"ieq: Cu~tI",null,"mYfIkl",0,"kmweI",0]
[null,null,null,"               Bwg -A  (pRI-mulMkx SIt)"]
[null,null,null,"1.","AiDAwpk duAwrw sbMDq swl dOrwn inBweIAW ivSyS syvwvW dw sMKyp vrxn :"]
[]
[null,null,null,"2.","AiDAwpk dy nqIjy"]
["Class3","class2",null,null,"lVIN nM:","jmwq","pVwieAw \nivSw","iemiqhwn iv~c bYTy ivid: dI igxqI","pws ivid: dI igxqI","pws \n %","borf dI pws %","vwDw / Gwtw","60 % qoN v~D AMk pRwpq ivid:","75 % qoN v~D AMk pRwpq ivid:","Bwg e Anuswr gxnW kIqy 200 iv~coN AMk",null,"Total"]
[{"$f":"B28&1","v":{"$error":"#REF!"}},{"$f":"VLOOKUP(#REF!,#REF!,2,FALSE)","v":{"$error":"#REF!"}},null,null,1,"ਅੱਠਵੀਂ",null,null,null,{"$f":"IFERROR(ROUND((I28/H28)*100,2),\"\")","v":""},null,{"$f":"IF(J28=\"\",\"\",J28-K28)","v":""},null,null,{"$f":"IFERROR(Q28+Q29+Q30+Q31,0)","v":0},null,{"$f":"ROUND(IF(J33>K33,140,((J33/K33)*140)),0)","v":{"$error":"#DIV/0!"}}]
[{"$f":"B29&1","v":{"$error":"#REF!"}},{"$f":"VLOOKUP(#REF!,#REF!,2,FALSE)","v":{"$error":"#REF!"}},null,null,2,null,null,null,null,{"$f":"IFERROR(ROUND((I29/H29)*100,2),\"\")","v":""},null,{"$f":"IF(J29=\"\",\"\",J29-K29)","v":""},null,null,null,null,{"$f":"IF(J33=100,20,ROUND(IF(J33>K33,(L33*20)/(100-K33),0),0))","v":0}]
[{"$error":"#REF!"},{"$f":"VLOOKUP(#REF!,#REF!,2,FALSE)","v":{"$error":"#REF!"}},null,null,3,null,null,null,null,"",null,{"$f":"IF(J30=\"\",\"\",J30-K30)","v":""},null,null,null,null,{"$f":"IF((M33)>20,20,(M33))","v":0}]
[{"$error":"#REF!"},{"$f":"VLOOKUP(#REF!,#REF!,2,FALSE)","v":{"$error":"#REF!"}},null,null,4,{"$f":"IFERROR(VLOOKUP(#REF!,#REF!,3,FALSE),\"\")","v":""},null,null,null,"",null,{"$f":"IF(J31=\"\",\"\",J31-K31)","v":""},null,null,null,null,{"$f":"IF((N33)>10,20,(N33*2))","v":0}]
[{"$error":"#REF!"},{"$f":"VLOOKUP(#REF!,#REF!,2,FALSE)","v":{"$error":"#REF!"}},null,null,5,{"$f":"IFERROR(VLOOKUP(#REF!,#REF!,3,FALSE),\"\")","v":""},null,null,null,"",null,{"$f":"IF(J32=\"\",\"\",J32-K32)","v":""}]
[null,null,null,null,null,"ku~l/AOsq pRqISq",null,null,null,{"$f":"IFERROR(AVERAGE(J28:J32),0)","v":0},{"$f":"IFERROR(AVERAGE(K28:K32),0)","v":0},{"$f":"IFERROR(AVERAGE(L28:L32),0)","v":0},{"$f":"IFERROR(ROUND(AVERAGE(M28:M32),0),0)","v":0},{"$f":"IFERROR(ROUND(AVERAGE(N28:N32),0),0)","v":0}]
[null,null,null,null,null,null,null,null,null,null,"……………………………"]
[null,null,null,null,null,null,null,null,null,"AiDAwpk dy hsqwKr"]
[null,null,null,"Bwg e : AiDAwpk dI mulWkx dI ivDI:",null,null,null,null,null,"ku~l AMk =200"]
[]
[null,null,null,1,"borf dy nqIjy dy brwbr nqIjw Awaux qy pRwpq AMk",null,null,null,null,null,"…..140 AMk",null,{"$f":"\" ies Bwg dy pRwpq AMk = \" & Q28","v":{"$error":"#DIV/0!"}}]
[null,null,null,2,"jykr nqIjw borf dI pws pRqISqqw qoN G~t hY :"]
[null,null,null,null,"nqIjw cwrt iv~c ivid: dI pws pRqISqw",null,null,null,null,null,"…..a"]
[null,null,null,null,"borf dI Aosq pws pRqISqw",null,null,null,null,null,"…..A"]
[null,null,null,null,"AiDAwpk nUM imlx vwly AMk (140 AMkW iv~coN)",null,null,null,null,null,"…..140  X a/A"]
[null,null,null,3,"jykr nqIjw borf dI pws pRqISqqw qoN v~D hY qW :",null,null,null,null,null,"……..20 AMk",null,{"$f":"\" ies Bwg dy pRwpq AMk = \" & Q29","v":" ies Bwg dy pRwpq AMk = 0"}]
[null,null,null,null,"20 AMkW iv~coN AMk dyx dw sUqr :"]
[null,null,null,null,null,"AiDAwpk dI borf dI pws % qoN v~D nqIjw X 20"]
[null,null,null,null,null,"100-bofr dw AOsq nqIjw",null,null,null,"(100 % nqIjy leI = 160 AMk)"]
[]
[null,null,null,null,"(AiDAwpk kol borf dI jmwq nw hox dI sUrq iv~c CyvIN Aqy s~qvIN dy slwnw nqIijAW dy A~TvIN sRyxI dy ivBwg dy nqIijAW nwl, nOvIN dy nqIijAW dI dsvIN dy pMjwb skUL is~iKAw bofr dy nqIijAW nwl Aqy 11vIN SRyxI dI, 12vIN SRyxI dy pMjwb skUl is`~iKAw boorf dy nqIijAW nwl qulxw kIqI jwvy [)"]
[]
[null,null,null,4,{"$f":"\"guxwqmk is~iKAw leI pRwpq AMk  \"&Q30+Q31","v":"guxwqmk is~iKAw leI pRwpq AMk  0"},null,null,null,"……ku~l AMk =40"]
[null,null,null,null,"not : borf dIAw ijAwdw jmwqW hox qy AOsq k~F leI jwvy["]
[null,null,null,null,"sbMDq ivSy iv~c 60% AMkW qoN ijAwdw lYx vwly hryk ivid: leI ie~k AMk Aqy v~D qoN v~D 20 AMk id~qy jw skdy hn[",null,null,null,null,null,null,null,null,{"$f":"\"pRwpq AMk = \" & Q30","v":"pRwpq AMk = 0"}]
[null,null,null,null,"sbMDq ivSy iv~c 75 % AMkW qoN ijAwdw lYx vwly hryk ivid: leI do AMk Aqy v~D qoN v~D 20 AMk id~qy jw skdy hn[",null,null,null,null,null,null,null,null,{"$f":"\"pRwpq AMk = \" & Q31","v":"pRwpq AMk = 0"}]
[null,null,null,null,"not : 10 qoN G~t ivid: hox qy swry ivid: dy 75 % qoN v~D AMk hox qy 40 AMk id~qy jw skdy hn["]
[]
[null,null,null,"not : jykr AiDAwpk Bwg-e dy ku~l AMkW dw 40% AMk pRwpq krdw hY qW hI Akwdimk Aqy sih-Akwdimk gqIivDIAW dy \n      pRwpq kIqy Amk joVy jwxgy["]
[null,null,null,"Bwg s. irport krn vwly AiDkwrI v~loN mulWkx"]
[null,null,null,"lVI nM:","Akwdimk Aqy sihAkwdimk gqIivDIAW",null,null,null,null,null,null,null,"ku~l AMk","v~D qoN v~D kul AMk","pRwpq AMk"]
[null,null,null,1,"AiDAwpk v~loN skUl iv`c b~icAW dI igxqI iv~c vwDw krn leI kIqy auprwly",null,null,null,null,null,null,null,null,20]
[null,null,null,null,"pRweIvyt skUl iv`coN G~to G`t do ividAwrQI srkwrI skUL iv`c dwKl krvwaux qy\"",null,null,null,null,null,null,null,10]
[null,null,null,null,"skUl iv`c G~to-G~t 5 ividAwrQI dwKl krvwaux qy",null,null,null,null,null,null,null,10]
[null,null,null,null,"AiDAwpk duAwrw pVHwey jw rhy ividAwrQIAW dI igxqI iv~c G~to G~t 2 % dw vwDw krn qy",null,null,null,null,null,null,null,10]
[null,null,null,2,"AiDAwpk dy Awpxy b~cy srkwrI skUl iv`c pVHdy hox qy (pRI pRweImrI qoNN bwrvIN q~k) \nnot : \n(a) ijnHW AiDAwpkW dI sMqwn nhIN  hY jW Ajy kuAwry/kuAwrIAW hn, auhnW AiDAwpkW nUM 10 nMbr Alwt kIqy jwx [\n(A) ijnHW AiDAwpkW dy b~cy 10+2 q~k is~iKAw pRwpq krn dI aumr lMG cu~ky hn, auhnW AiDAwpkW nuM vI 10 nMbr Alwt kIqy jwx [ \n",null,null,null,null,null,null,null,10,10]
[]
[null,null,null,3,"AiDAwpn kwrz",null,null,null,null,null,null,null,"",20]
[null,null,null,"","inrMqr Aqy imqI b~D kwpIAW dI jWc",null,null,null,null,null,null,null,4]
[null,null,null,"","ivSy nwl sbMDq not bu~k iv`c suMdr Aqy AwkrSk ic~qr bxwaux leI kIqy auprwilAW leI",null,null,null,null,null,null,null,4]
[null,null,null,"","AiDAwpk fwierI",null,null,null,null,null,null,null,4]
[null,null,null,"","svyr dI sBw iv`c BwSx (mhINny iv`c G~to-G~t do vwrI)",null,null,null,null,null,null,null,4]
[null,null,null,"","AiDAwpk v~loN klws tYst lYx Aqy irkwrf myntyn krn qy (mhINny iv`c G~to-G~t do vwrI)",null,null,null,null,null,null,null,4]
[null,null,null,4,"ivSyS ijMmyvwrI/ieMcwrjiSp",null,null,null,null,null,null,null,"",10]
[null,null,null,"","skwaUt,AYn.sI.sI., AYn.AYs.AYs. ieMcwrz",null,null,null,null,null,null,null,2]
[null,null,null,"","dwKlw Kwrz ieMcwrz",null,null,null,null,null,null,null,2]
[null,null,null,"","hwaUs ieMcwrz",null,null,null,null,null,null,null,2]
[null,null,null,"","imf-fy-mIl ieMcwrz",null,null,null,null,null,null,null,2]
[null,null,null,"","tweIm tybl ieMcrj",null,null,null,null,null,null,null,2]
[null,null,null,5,"ividAwrQIAW dIAW ivSyS jmwqW/kYNp leI kIqy gey au~dm",null,null,null,null,null,null,null,"",10]
[null,null,null,"","srdIAW dIAW Cu~tIAW dOrwn ivSyS isKlweI kYNp/ jmwqW leI",null,null,null,null,null,null,null,2,""]
[null,null,null,"","skUl smyN qoN pihlW jW bwAd jmwqW lgwaux leI",null,null,null,null,null,null,null,3,""]
[null,null,null,"","grmIAW dIAW Cu~tIAW dOrwn smr kYNp/ jmwqW lgwaux leI (7-10 idn)",null,null,null,null,null,null,null,5,""]
[null,null,null,6,"AMgryzI mwiDAm ivkisq krn leI kIqy Xqn",null,null,null,null,null,null,null,"",5]
[null,null,null,"","AiDAwpk v~loN pVHweI jw rhI jmwq dy ku~l b~icAW iv~coN 10 % b`icAW nUM AMgryzI mwiDAm iv~c pVHwaux qy",null,null,null,null,null,null,null,5,""]
[null,null,null,7,"mltImIfIAW rwhIN/ ieMnovyitv qrIky nwl is~iKAw pRdwn krn leI kIqy audm",null,null,null,null,null,null,null,"",10]
[null,null,null,"","pVwayux leI kMipaUtr dI vrqoN",null,null,null,null,null,null,null,5,""]
[null,null,null,"","mltImIfIAW eI-kMntYNt dI jmwq iuv`c vrqoN",null,null,null,null,null,null,null,5,""]
[null,null,null,"","gqIivDIAW Adwirq is~Kx-isKwaux pRikrIAw Apnwaux qy",null,null,null,null,null,null,null,5,""]
[null,null,null,8,"ivSy nwl sbMDq tUr ivzt krvwaux qy",null,null,null,null,null,null,null,10,10]
[null,null,null,9,"ivSy nwl sbMDq v~K v~K idvs mnwauxw Aqy irkwrf myntyn krn qy",null,null,null,null,null,null,null,5,5]
[null,null,null,10,"sYSn dOrwn pRsMsw p~qr/Avwrf pRwpq krn qy",null,null,null,null,null,null,null,"",10]
[null,null,null,"","blwk/ qihsIl p~Dr qy",null,null,null,null,null,null,null,2,""]
[null,null,null,"","ijlHw p~Dr qy",null,null,null,null,null,null,null,3,""]
[null,null,null,"","styt p~Dr qy",null,null,null,null,null,null,null,5,""]
[null,null,null,"","ivBwg dy au~c AiDkwrIAW qoN ivSyS pRsMsw p~qr pRwpq krn qy",null,null,null,null,null,null,null,10,""]
[null,null,null,"","nYSnl Avwrf pRwpq krn qy",null,null,null,null,null,null,null,10,""]
[null,null,null,11,"AiDAwpk dw ividAwrQIAW dy mipAW nwl rwbqw",null,null,null,null,null,null,null,"",5]
[null,null,null,"","SoSl mIfIAw rwhIN",null,null,null,null,null,null,null,1,""]
[null,null,null,"","skUl iv`c mIitMgW rwhIN",null,null,null,null,null,null,null,1,""]
[null,null,null,"","vtsAYp gru~p rwhIN",null,null,null,null,null,null,null,3,""]
[null,null,null,12,"skUl dw mYgzIn iqAwr krnw",null,null,null,null,null,null,null,"",5]
[null,null,null,"","AiDAwpk v~loN skUl dy mYgzIn iqAwr krn iv`c Aqy pRkwiSq krvwaux iv`c sihXog dyx qy",null,null,null,null,null,null,null,5]
[]
[null,null,null,13,"AiDAwpk dI kimaUintI v~loN Awpxy skUl iv`c pwey Xogdwn dI SlwGw",null,null,null,null,null,null,null,"",5]
[null,null,null,"","SoSl mIfIAw rwhIN",null,null,null,null,null,null,null,2,""]
[null,null,null,"","ipRMt mIfIAw rwhIN",null,null,null,null,null,null,null,3,""]
[null,null,null,"","ielYktRoinks mIfIAw rwhIN",null,null,null,null,null,null,null,5,""]
[null,null,null,14,"AiDAwpk v~loN isrP is~iKAw nwl sbMDq skwrwqimk AwrtIkl/lyK ipRMt mIfIAw iv`c pRkwiSq hox qy",null,null,null,null,null,null,null,"",5]
[null,null,null,"","hr ie~k AwrtIkl/lyK pRkwiSq hox qy 01 nMbr",null,null,null,null,null,null,null,5]
[null,null,null,"","is~iKAw Kyqr nwl sbMDq ie~k ikqwb pRkwSq hoxy qy",null,null,null,null,null,null,null,5]
[null,null,null,15,"skUL muKI jW ivBwg dy au~c AiDkwrIAW v~loN sONpy gey ivSyS kwrz nUM sPlqw pUrvk nypry cwVn qy",null,null,null,null,null,null,null,5,5]
[null,null,null,16,"AiDAwpk dI kMipaUtr iv`c muhwrq",null,null,null,null,null,null,null,5,5]
[null,null,null,17,"AiDAwpkW duAwrw skUl dI ibhqrI leI kimaUintI dy sihXog nwl kIqy gey kMmW dw vyrvw",null,null,null,null,null,null,null,"",10]
[null,null,null,null,"iek klws rUm dw suMdrIkrn jW buinAwdI FWcw iqAwr krn jW krvwaux qy",null,null,null,null,null,null,null,5]
[null,null,null,null,"skUL dI iemwrq dw suMdrIkrn jW buinAwdI FWcw iqAwr krn jW krvwaux qy",null,null,null,null,null,null,null,10]
[null,null,null,null,"skUl iv`c vyst mtIrIAl nUM vrqoN Xog bxwaux leI kIqy gey auprwilAW qy",null,null,null,null,null,null,null,5]
[null,null,null,18,"aufwx pROjYkt ADIn ividAwrQIAW dI suMdr ilKweI (AMgryzI) dy mukwbly krvwaux qy",null,null,null,null,null,null,null,10,10]
[null,null,null,19,"pVHo pMjwb pVHwE pMjwb ADIn kwrj kwl dOrwn ivSy nwl sbMDw sm~grI dI vrqoN Aqy ividAwrQIAW dI BwgIdwrI",null,null,null,null,null,null,null,10,10]
[null,null,null,20,"pVHo pMjwb pVHwE pMjwb ADIn kwrj kwl dOrwn krvweIAW gqIivDIAW Aqy rYgUlr irkwrf myntyn krnw",null,null,null,null,null,null,null,10,10]
[null,null,null,21,"pVHo pMjwb pVHwE pMjwb ADIn kwrj kwl dOrwn ienhWsmYNt kors iv`c AiDAwpk dI BwgIdwrI",null,null,null,null,null,null,null,10,10]
[null,null,null,22,"pVHo pMjwb pVHwE pMjwb ADIn gqIivDIAW sbMDI tIcw pRwpqI",null,null,null,null,null,null,null,10,10]
[null,null,null,null,"Bwg s (Akwdimk Aqy sihAkwdimk gqIivDIAW)dy ku~l pRwpq AMk",null,null,null,null,null,null,null,null,null,{"$f":"IFERROR(SUM(O59:O119),\"\")","v":0}]
[null,null,null,"not : skUl muKI sbMDq AiDAwpk qoN ey.sI.Awr. iv~c drz Akwdimk qy sih Akwdimk gqIivDIAW sbMDI pRwpqIAW/krvwey kMmW bwry ilKqI rUp iv~c pRwpq krnw XkInI bxwaux["]
[]
[null,null,null,"Bwg e (200 AMk) + Bwg s (200 AMk) = 400 AMkW iv`coN pRwpq AMkW dw joV : ",null,null,null,null,null,null,null,null,{"$f":"IFERROR(IF(O120<1,\"\",P123),\"\")","v":""},null,null,{"$f":"O120+O28","v":0}]
[null,null,null,"not : AiDAwpk v~loN Bwg e Aqy Bwg s iv~coN pRwpq AMkW nUM 100 AMkW iv`coN qbdIl kr ilAw jwvy"]
[null,null,null,null,null,null,null,"100 AMkW iv`coN pRwpq AMk ",null,null,null,null,{"$f":"IFERROR(ROUND((M123/4),0),\"\")","v":""}]
[null,null,null,"(not : auprokq AMk skUl muKI v~loN sbMDq gqIivDI dy irkwrf dy Adwr qy id~qy jwxgy[ ivBwg v~loN lgweI geI ifaUtI dyx qoN ienkwr krn vwly AiDAwpk dI ey.sI.Awr. iv~c ies dw ieMdrwz kIqw jwvy)"]
[]
[null,null,null,null,"AiDAwpk dI drjwbMdI :\n1. 81 qoN 100 mYirt q~k = au~qm   2. 61 qoN 80 mYirt q~k = bhuq A~Cw     3. 41 qoN 60 mYirt q~k = A~Cw\n4. 21 qoN 40 mYirt q~k = AOsq    5. 0 qoN 20 mYirt q~k = AOsq qoN G~t"]
[]
[null,null,null,null,{"$f":"\"drjwbMdI : =   \"&IFERROR(IF(M125=\"\",\"\",(IF(M125>80,\"au`qm\",IF(M125>60,\"bhuq A`Cw\",IF(M125>40,\"A`Cw\",IF(M125>20,\"Aosq\",IF(M125>0,\"Aosq qoN G`t\",\"\"))))))),\"\")","v":"drjwbMdI : =   "},null,null,null,null,"………………………………"]
[null,null,null,null,null,null,null,null,null,"irport krn vwly AiDkwrI dy hsqwKr"]
[]
[]
[null,null,null,null,"drjwbMdI :",null,null,null,null,"………………………………"]
[null,null,null,null,null,null,null,null,null,"rIivaU krn vwly AiDkwrI dy hsqwKr"]
[]
[]
[null,null,null,null,"drjwbMdI :",null,null,null,null,"………………………………"]
[null,null,null,null,null,null,null,null,null,"pRvwn krn vwly AiDkwrI dy hsqwKr"]
[]
[null,null,null,null,{"$f":"\"AiDAwpk nW qy Ahudw/skUl : \" & K6 & \" (\" & G7 & \") - \" & G5","v":"AiDAwpk nW qy Ahudw/skUl :  () - srkwrI hweI skUl,  luiDAwxw"}]
[]
[]
[]
[]
[]
[]
[]
[]
[]
[]
[]
[]
[]
[]
[null,null,null,null,null,null,null,null,null,null,null,"www.Teachershelp.in"]

{"sheet":"Board Result","index":2,"n_rows":117,"n_cols":6,"rows_kept":117,"cut":false,"hidden":false,"merged":[[0,0,0,4]]}
["gzikp ;e{b f;Zfynk p'ov\npkoQthA gqhfynk, wkou - 2023 (o?r{bo)\n"]
["Sub Code","Subject","Total ","Pass","%age"]
[1,"GENERAL ENGLISH",296709,279625,94.24,"%"]
[2,"GENERAL PUNJABI",296368,294613,99.4,"%"]
[3,"PUNJAB HISTORY AND CULTURE",341,325,95.3,"%"]
[4,"PUNJABI (ELECTIVE)",54197,53452,98.62,"%"]
[5,"HINDI (ELECTIVE)",18757,18403,98.11,"%"]
[6,"ENGLISH (ELECTIVE)",7154,7053,98.58,"%"]
[7,"URDU",176,174,98.86,"%"]
[19,"SANSKRIT",178,177,99.43,"%"]
[25,"HISTORY",144493,143126,99.05,"%"]
[26,"ECONOMICS",48042,47547,98.96,"%"]
[28,"MATHEMATICS",40285,39918,99.08,"%"]
[31,"POLITICAL SCIENCE",94099,92914,98.74,"%"]
[32,"SOCIOLOGY",23044,22807,98.97,"%"]
[33,"PUBLIC ADMINISTRATION",189,184,97.35,"%"]
[35,"RELIGION",3026,2931,96.86,"%"]
[36,"MUSIC (VOCAL)",1622,1573,96.97,"%"]
[37,"MUSIC (INSTRUMENTAL)",371,368,99.19,"%"]
[38,"MUSIC (TABLA)",17,17,100,"%"]
[39,"GURMAT SANGEET",28,27,96.42,"%"]
[40,"DANCE",36,33,91.66,"%"]
[41,"PHILOSOPHY",76,71,93.42,"%"]
[42,"GEOGRAPHY",12105,11926,98.52,"%"]
[43,"DEFENCE STUDIES",44,19,43.18,"%"]
[44,"PSYCHOLOGY",713,711,99.71,"%"]
[45,"HOME SCIENCE",4407,4282,97.16,"%"]
[46,"DRAWING AND PAINTING",9548,9467,99.15,"%"]
[48,"COMMERCIAL ART",1475,1448,98.16,"%"]
[49,"PHYSICAL EDUCATION & SPORTS",161381,159577,98.88,"%"]
[50,"HISTORY & APPRECIATION OF ART",52,39,75,"%"]
[52,"PHYSICS",45504,45306,99.56,"%"]
[53,"CHEMISTRY",45504,45319,99.59,"%"]
[54,"BIOLOGY",21760,21623,99.37,"%"]
[65,"AGRICULTURE",1801,1763,97.89,"%"]
[66,"MODELLING & SCULPTURE",573,560,97.73,"%"]
[72,"COMPUTER APPLICATION",1976,1954,98.88,"%"]
[73,"COMMERCIAL CROPS",385,383,99.48,"%"]
[74,"LANDSCAPING AND FLORICULTURE",385,381,98.96,"%"]
[75,"POST HARVEST TECHNOLOGY & PRESERVATION",385,378,98.18,"%"]
[92,"FOOD PROCESSING",569,530,93.14,"%"]
[93,"PLANT MANAGEMENT",569,563,98.94,"%"]
[94,"FOOD PACKAGING",569,561,98.59,"%"]
[95,"DRESS MAKING",1019,1004,98.52,"%"]
[96,"COMMERCIAL CLOTHING",1019,999,98.03,"%"]
[97,"UNIT MANAGEMENT",1019,999,98.03,"%"]
[98,"FASHIONED KNITWEAR",450,439,97.55,"%"]
[99,"CIRCULAR KNITTING",450,438,97.33,"%"]
[100,"TEXTILE YARN CALCULATIONS & GARMENT MAKING",450,438,97.33,"%"]
[101,"FABRIC STRUCTURE AND DESIGNING",434,427,98.38,"%"]
[102,"TEXTILE TESTING AND DYEING",434,425,97.92,"%"]
[103,"POWER LOOM MECHANICS AND OPERATIONS",434,425,97.92,"%"]
[104,"TEXTILE DESIGNING AND PRINTING - II",502,497,99,"%"]
[105,"TEXTILE TESTING AND FINISHING",502,497,99,"%"]
[106,"TEXTILE DYEING - II",502,495,98.6,"%"]
[107,"ELEMENTS OF ELECTRICAL TECHNOLOGY",1417,1382,97.53,"%"]
[108,"ELECTRICAL DOMESTIC APPLIANCES - II",1417,1400,98.8,"%"]
[109,"MATERIALS & WORKSHOP PRACTICE - II",1417,1389,98.02,"%"]
[110,"DIGITAL ELECTRONICS AND COMMUNICATION",904,890,98.45,"%"]
[111,"TEST AND MEASURING INSTRUMENTS",904,892,98.67,"%"]
[112,"ELECTRONICS DEVICE AND CIRCUITS",904,880,97.34,"%"]
[113,"ENGINEERING DRAWING - II",372,368,98.92,"%"]
[114,"WORKSHOP PRACTICE - II",372,368,98.92,"%"]
[115,"CONSTRUCTION MATERIAL AND ESTIMATE",372,365,98.11,"%"]
[116,"FITTING AND WELDING",1030,1008,97.86,"%"]
[117,"MACHINE TOOL OPERATION",1030,1003,97.37,"%"]
[118,"MECHANICAL DRAWING - II",1030,1011,98.15,"%"]
[122,"WORKSHOP TECHNOLOGY",369,365,98.91,"%"]
[123,"GARAGE PRACTICE AND MANAGEMENT",369,365,98.91,"%"]
[124,"AUTOMOBILE SUSPENSION AND CONTROLS",369,365,98.91,"%"]
[125,"OBJECT ORIENTED PROGRAMMING IN C++",612,602,98.36,"%"]
[126,"DESK TOP PUBLISHING",612,599,97.87,"%"]
[127,"NETWORKING",612,600,98.03,"%"]
[137,"ON THE JOB TRAINING",12318,12256,99.49,"%"]
[138,"GENERAL FOUNDATION COURSE",10,10,100,"%"]
[139,"ENVIRONMENTAL EDUCATION",296709,293276,98.84,"%"]
[141,"BUSINESS STUDIES-II",33595,33482,99.66,"%"]
[142,"ACCOUNTANCY-II",33594,33283,99.07,"%"]
[144,"FUNDAMENTALS OF E-BUSINESS (C)",17488,17434,99.69,"%"]
[146,"COMPUTER SCIENCE",296709,294886,99.38,"%"]
[150,"MEDIA STUDIES",22,22,100,"%"]
[169,"PRINCIPLES & PRACTICES OF INSURANCE - II",275,269,97.81,"%"]
[170,"INSURANCE LEGISLATION - II",275,270,98.18,"%"]
[171,"INSURANCE SALESMANSHIP - II",275,267,97.09,"%"]
[172,"ADVANCED MANAGEMENT-II",710,695,97.88,"%"]
[173,"MARKETING MANAGEMENT - II",710,701,98.73,"%"]
[174,"SALESMANSHIP - II",710,700,98.59,"%"]
[181,"MANAGEMENT - II",520,516,99.23,"%"]
[182,"TECHNOLOGY & E-COMMERCE - II",520,517,99.42,"%"]
[183,"IMPORT MANAGEMENT",520,517,99.42,"%"]
[187,"BOOK KEEPING - II",288,284,98.61,"%"]
[188,"APPLICATION OF MANAGEMENT",288,283,98.26,"%"]
[189,"CO-OPERATIVE MANAGEMENT - II",288,283,98.26,"%"]
[190,"ELEMENTS OF BOOK KEEPING - II",317,315,99.36,"%"]
[191,"PRINCIPLES OF MANAGEMENT - II",317,315,99.36,"%"]
[192,"FUNDAMENTALS OF INCOME TAX - II",317,316,99.68,"%"]
[196,"RETAIL",3318,3303,99.54,"%"]
[197,"AUTOMOBILE",866,861,99.42,"%"]
[198,"HEALTH CARE",7416,7359,99.23,"%"]
[199,"INFORMATION TECHNOLOGY / INFORMATION TECHNOLOGY ENABLED SERVICES",6423,6343,98.75,"%"]
[201,"BEAUTY AND WELLNESS",7640,7591,99.35,"%"]
[202,"TRAVEL AND TOURISM",1043,1032,98.94,"%"]
[203,"PHYSICAL EDUCATION AND SPORTS",649,646,99.53,"%"]
[204,"AGRICULTURE (NSQF)",1974,1949,98.73,"%"]
[206,"APPAREL (NSQF)",2456,2431,98.98,"%"]
[207,"CONSTRUCTION",1783,1757,98.54,"%"]
[208,"PLUMBING",1703,1685,98.94,"%"]
[209,"NATIONAL CADET CORPS",514,437,85.01,"%"]
[210,"WELCOME LIFE",296709,295169,99.48,"%"]
[211,"OFFICE MANAGEMENT-II",1594,1580,99.12,"%"]
[212,"TYPOGRAPHY-II (ENGLISH/PUNJABI)",1594,1574,98.74,"%"]
[213,"ACCOUNTING AND E-COMMERCE",1157,1146,99.04,"%"]
[214,"SHORTHAND-II (ENGLISH/PUNJABI)",437,433,99.08,"%"]
[215,"MANAGERIAL ECONOMICS AND STATISTICS",552,545,98.73,"%"]
[216,"ADVANCES AND FOREIGN EXCHANGE",552,544,98.55,"%"]
[217,"INTRODUCTION TO COMPUTER APPLICATIONS",552,544,98.55,"%"]
[218,"POWER",193,189,97.92,"%"]

{"sheet":"Sheet1","index":3,"n_rows":9,"n_cols":1,"rows_kept":9,"cut":false,"hidden":true,"merged":[]}
[]
["Class P"]
["ਛੇਵੀਂ"]
["ਸੱਤਵੀਂ"]
["ਅੱਠਵੀਂ"]
["ਨੌਵੀਂ"]
["ਦਸਵੀਂ"]
["10+1 "]
["10+2"]

{"sheet":"Sheet4","index":4,"n_rows":568,"n_cols":7,"rows_kept":568,"cut":false,"hidden":true,"merged":[]}
[6,"06:Drawind/Painting related Lecturer/Teachers (Grading)",2,"frwieMg/pyitMg/ic~qrklw ivSy nwl sbMDq lYkcrwr/AiDAwpk  dI slwnw mulWkx irport \ngryifMg ivSw hox qy     (ey.sI.Awr.-6)","AiDAwpk/AiDAwpkw dw nW","AiDAwpk v~loN kYlMfr swl iv`c leIAW Cu~tIAW: ","Yes"]
[8,"08:Physical Education Lecturer/Teachers (Grading)",4,"srIrk is`iKAw lYkcrwr/AiDAwpk  dI slwnw mulWkx irport \ngryifMg ivSw hox qy  (ey.sI.Awr.-8)","AiDAwpk/AiDAwpkw dw nW","AiDAwpk v~loN kYlMfr swl iv`c leIAW Cu~tIAW: ","No"]
[10,"10: Vocational Lecturer/Teachers (Grading)",6,"vokySnl lYkcrwr/AiDAwpk  dI slwnw mulWkx irport \ngryifMg ivSw hox qy     (ey.sI.Awr.-10)","AiDAwpk/AiDAwpkw dw nW","AiDAwpk v~loN kYlMfr swl iv`c leIAW Cu~tIAW: "]
[13,"13:Other Subject Lecturer/Teachers (as Agriculture,Home Science,Music etc.) Grading",8,"hor ivSy dy AiDAwpk/lYkcrwr  dI slwnw mulWkx irport \n(ijvyN KyqIbwVI, hom swieMs, imaUjk) : gryifMg ivSw hox qy \n(ey.sI.Awr.-13)","AiDAwpk/AiDAwpkw dw nW","AiDAwpk v~loN kYlMfr swl iv`c leIAW Cu~tIAW: "]
[]
[]
[]
[]
[]
[]
[]
[]
[]
[14,"6th","Middle","CyvIN"]
[null,"7th","Middle","s~qvIN"]
[null,"8th","Middle","A~TvIN"]
[null,"9th","Matric","nOvIN"]
[null,"10th","Matric","dsvIN"]
[null,"11th","Secondary","10+1 "]
[null,"12th","Secondary","10+2"]
[]
[]
[]
[]
[]
[]
[]
[]
[]
[]
[]
[]
[]
[]
[]
[]
[]
[]
[]
[]
[]
[]
[]
[]
[]
[]
[]
[]
[]
[]
[]
[]
[]
[]
[]
[]
[]
[]
[]
[]
[]
[]
[]
[]
[]
[]
[]
[]
[]
[]
[3,"AiDAwpn kwrz",null,20,5]
[null,"inrMqr Aqy imqI b~D kwpIAW dI jWc",4]
[null,"ivSy nwl sbMDq frwieMg PweIlW iv`c suMdr Aqy AwkrSk ic~qr bxwaux leI kIqy auprwilAW leI",4]
[null,"AiDAwpk fwierI",4]
[null,"svyr dI sBw iv`c BwSx (mhINny iv`c G~to-G~t do vwrI)",4]
[null,"AiDAwpk v~loN klws tYst lYx Aqy irkwrf myntyn krn qy (mhINny iv`c G~to-G~t do vwrI)",4]
[4,"ivSyS ijMymyvwrI/ieMcwrjiSp",null,10]
[null,"skwaUt,AYn.sI.sI., AYn.AYs.AYs. ieMcwrz",2]
[null,"dwKlw Kwrz ieMcwrz",2]
[null,"hwaUs ieMcwrz",2]
[null,"imf-fy-mIl ieMcwrz",2]
[null,"tweIm tybl ieMcrj",2]
[5,"frwieMg rUm/pyitMg kOrnr dy ivkisq krn leI kIqy auprwly",null,10]
[null,"nmUny dw pyitMg kOrnr ivkisq krn/ r~K rKwA krn qy",5]
[null,"nmUny dw frwieMg / pyitMg rUm ivkisq krn qy Aqy rUm nwl sbMDq Awp jW dwnI s~jxw qoN mYtIrIAl (pyitMgz) iek~TYIAW krn qy",5]
[null,"AiDAwpk duAwrw Awpxy XqnW / ivSy dy ividAwrQIAW rwhIN skUl iv`c mwto, smW swrxI, nkSy Awid bxwaux qy",5]
[6,"ividAwrQIAW dIAW ivSyS jmwqW/kYNp leI kIqy gey au~dm",null,10]
[null,"srdIAW dIAW Cu~tIAW dOrwn ivSyS isKlweI kYNp/ jmwqW leI",2]
[null,"skUl smyN qoN pihlW jW bwAd jmwqW lgwaux leI",3]
[null,"grmIAW dIAW Cu~tIAW dOrwn smr kYNp/ jmwqW lgwaux leI (7-10 idn)",5]
[7,"AiDAwpk dI ivSy iv`c muhwrq",null,10]
[null,"jy AiDAwpk ic~qrklw frwieMg iv`c muhwrq r~Kdw hY qW",5]
[null,"jy AiDAwpk skyl frwieMg / mkYnIkl frwieMg iv`c muhwrq r~Kdw hY qW",5]
[8,"AiDAwpk v~loN is~Kx isKwaux sm~grI (tI.Ayl.Aym.) dI vrqoN krn qy",null,20]
[null,"vwtr klr Aqy Awiel pystl klr dI vrqoN",3]
[null,"poAwieMt Aqy PlYt burS dI vrqoN",4]
[null,"klyA molifMg dI isKlweI",3]
[null,"pYnisl skYicMg Aqy SyifMg dI isKlweI",3]
[null,"jmwq iv~c frwieMg borf dI vrqoN",4]
[null,"v~K v~K qrW dIAW pYnislW dI jwxkwrI Aqy vrqoN",3]
[9,"mltImIfIAW rwhIN/ ieMnovyitv qrIky nwl is~iKAw pRdwn krn leI kIqy audm",null,10]
[null,"kMipaUtr rwhIN rMgW dw imSrx isKwaux qy",5]
[null,"mltImIfIAW rwhIN ivSy nUM rock aqy pRBwv pUrn bxwaux leI jmwq iuv`c vrqoN",5]
[null,"gqIivDIAW Adwirq is~Kx-isKwaux pRikrIAw Apnwaux qy",5]
[10,"AiDAwpk duAwrw Awpxy Kyqr iv~c ivSyS nwmxw K~tx qy",10,10]
[11,"ivSy nwl sbMDq tUr/Awrt gYlrI dI ivzt krvwaux qy",10,10]
[12,"ivSy nwl sbMDq v~K v~K idvs mnwauxw Aqy irkwrf myntyn krn qy",5,5]
[13,"skUl dw mYgzIn iqAwr krnw",null,5]
[null,"AiDAwpk v~loN skUl dy mYgzIn iqAwr krn iv`c Aqy pRkwiSq krvwaux iv`c sihXog dyx qy",5]
[14,"sYSn dOrwn pRsMsw p~qr/Avwrf pRwpq krn qy",null,10]
[null,"blwk/ qihsIl p~Dr qy",2]
[null,"ijlHw p~Dr qy",3]
[null,"styt p~Dr qy",5]
[null,"ivBwg dy au~c AiDkwrIAW qoN ivSyS pRsMsw p~qr pRwpq krn qy",10]
[null,"nYSnl Avwrf pRwpq krn qy",10]
[15,"ividAwrQIAW dIAW ivSy nwl sbMDq mukwbilAW iv`c SmUlIAq krvwaux qy",null,5]
[null,"blwk/ qihsIl p~Dr qy",2]
[null,"ijlHw p~Dr qy",3]
[null,"styt p~Dr qy",5]
[null,"rwStrI p~Dr qy",5]
[16,"AiDAwpk dw ividAwrQIAW dy mipAW nwl rwbqw",null,5]
[null,"SoSl mIfIAw rwhIN",1]
[null,"skUl iv`c mIitMgW rwhIN",1]
[null,"vtsAYp gru~p rwhIN",3]
[17,"AiDAwpk dI kimaUintI v~loN Awpxy skUl iv`c pwey Xogdwn dI SlwGw",null,5]
[null,"SoSl mIfIAw rwhIN",2]
[null,"ipRMt mIfIAw rwhIN",3]
[null,"ielYktRoinks mIfIAw rwhIN",5]
[18,"AiDAwpk v~loN isrP is~iKAw nwl sbMDq skwrwqimk AwrtIkl/lyK ipRMt mIfIAw iv`c pRkwiSq hox qy",null,10]
[null,"hr ie~k AwrtIkl/lyK pRkwiSq hox qy 01 nMbr",5]
[null,"is~iKAw Kyqr nwl sbMDq ie~k ikqwb pRkwSq hoxy qy",10]
[19,"skUL muKI jW ivBwg dy au~c AiDkwrIAW v~loN sONpy gey ivSyS kwrz nUM sPlqw pUrvk nypry cwVn qy",5,5]
[20,"AiDAwpk dI kMipaUtr iv`c muhwrq",5,5]
[21,"AiDAwpkW duAwrw skUl dI ibhqrI leI kimaUintI dy sihXog nwl kIqy gey kMmW dw vyrvw",null,10]
[null,"iek klws rUm dw suMdrIkrn jW buinAwdI FWcw iqAwr krn jW krvwaux qy",5]
[null,"skUL dI iemwrq dw suMdrIkrn jW buinAwdI FWcw iqAwr krn jW krvwaux qy",10]
[null,"skUl iv`c vyst mtIrIAl nUM vrqoN Xog bxwaux leI kIqy gey auprwilAW qy",5]
[]
[]
[]
[]
[]
[]
[]
[]
[]
[]
[]
[]
[]
[]
[]
[]
[]
[]
[]
[]
[]
[]
[]
[]
[]
[]
[]
[]
[]
[]
[]
[]
[]
[]
[]
[]
[]
[]
[]
[]
[]
[]
[]
[]
[]
[]
[]
[]
[]
[]
[]
[]
[]
[]
[]
[]
[]
[]
[]
[]
[]
[]
[]
[]
[]
[]
[]
[]
[]
[]
[]
[]
[]
[]
[3,"AiDAwpn kwrz",null,20,6]
[null,"inrMqr Aqy imqI b~D kwpIAW dI jWc",4]
[null,"gixq/swieMs nwl sbMDq pRYktIkl PweIlW iv`c suMdr Aqy AwkrSk ic~qr bxwaux leI kIqy auprwilAW leI",4]
[null,"AiDAwpk fwierI",4]
[null,"svyr dI sBw iv`c BwSx (mhINny iv`c G~to-G~t do vwrI)",4]
[null,"AiDAwpk v~loN klws tYst lYx Aqy irkwrf myntyn krn qy (mhINny iv`c G~to-G~t do vwrI)",4]
[4,"svyr dI sBw",null,20]
[null,"pRBwv pUrn qrIky nwl svyr dI sBw krvwaux qy",4]
[null,"imaUjIkl swjW dI vrqoN krn qy (frMm bIt, hrmonIAm, qblw, lwaUf spIkr Awid)",4]
[null,"pRBwv pUrn qrIky nwl pI.tI. Krvwaux qy",4]
[null,"rozwnw hwaUs PlYg lihrwaux qy",4]
[null,"svyr dI sBw iv`c ividAwrQIAW dy Awaux qy jwx iv`c AnuSwsn kwiem r~Kx qy",4]
[5,"KyfW iv`c pRpqIAW",null,30]
[null,"blwk/jon dIAW KyfW iv`c Bwg lYx qy",3]
[null,"blwk/zon  dIAW KyfW ivc pujISn lYx qy (isrP pihlI jW dUjI)",5]
[null,"ijlHy dIAW KyfW iv`c Bwg lYx qy",5]
[null,"ijlHy dIAW KyfW ivc pujISn lYUx qy (isrP pihlI, dUjI jw qIjI)",8]
[null,"AMqr ijlw KyfW iv`c Bwg lYx qy",10]
[null,"AMqr ijlw KyfW ivc pujISn lYx qy (isrP pihlI, dUjI jw qIjI)",15]
[null,"rwStrI KyfW iv`c Bwg/pujISn lYx qy",20]
[6,"srIirk is~iKAw lYkcrwr/AiDAwpk dI AwpxI Kyf iv`c auplbDIAW",null,5]
[null,"AiDAwpk dI AwpxI ikhVI Kyf iv`c mhuwrq hY : .............................. aus Kyf iv`c Kud dIAW-",5]
[null,"auplbdIAW/pRwpqI krn qy (sYSn dOrwn iksy vI tUrnWmYNt iv`c phIlI dUjI jW qIjI pujISn hwsl krn qy)"]
[null,"AwpxI Kyf dy hI iKfwrI iqAwr krn qy Aqy ijlHy p~Dr dy iksy tUrnWmYNt iv~c pRwpqI krn qy-",5]
[null,"(isrP pihlI jW dUjI pujISn hwsl krn qy)"]
[7,"KyfW dy tUrnWmYNt iv`c ifaUtI nBwaux qy",null,5]
[null,"blwk/zon dIAW KyfW iv`c ifaUtI dyx qy",1]
[null,"ijlHy dIAW KyfW iv`c ifaUtI dyx qy",2]
[null,"AMqr ijlw KyfW iv`c ifaUtI dyx qy",3]
[null,"rwStrI KyfW iv`c ifaUtI dyx qy",5]
[8,"skUl dI AwpxI bYNf tIm iqAwr krn qy",5,5]
[9,"ivSyS ijMmyvwrI/ieMcwrjiSp",null,10]
[null,"skwaUt,AYn.sI.sI., AYn.AYs.AYs. ieMcwrz",2]
[null,"dwKlw Kwrz ieMcwrz",2]
[null,"hwaUs ieMcwrz",2]
[null,"imf-fy-mIl ieMcwrz",2]
[null,"tweIm tybl ieMcrj",2]
[10,"skUl dw grwauNf ivkisq krn leI kIqy auprwly",null,5]
[null,"AiDAwpk duAwrw Awpxy XqnW / ividAwrQIAW dy sihXog rwhIN skUl grwauNf/ Kyf ienPrwstrkcr iqAwr krn Aqy r~K rKwA krn qy",5]
[11,"ividAwrQIAW dIAW ivSyS jmwqW/kYNp leI kIqy gey au~dm",null,10]
[null,"srdIAW dIAW Cu~tIAW dOrwn ivSyS Kyyf isKlweI kYNp/ jmwqW leI (03 idn q~k)",2]
[null,"skUl smyN qoN pihlW jW bwAd Kyf isKlweI krvwaux leI",3]
[null,"grmIAW dIAW Cu~tIAW dOrwn smr Kyf kYNp lgwaux leI (7-10 idn)",5]
[12,"mltImIfIAW rwhIN/ ieMnovyitv qrIky nwl is~iKAw pRdwn krn leI kIqy audm",null,10]
[null,"mltImIfIAW rwhIN KyfW bwry uividAwrQIAW nUM isKlweI dyxw",5]
[null,"gqIivDIAW Adwirq is~Kx-isKwaux pRikrIAw Apnwaux qy",5]
[13,"ivSy nwl sbMDq v~K v~K idvs mnwauxw",5,5]
[14,"skUl dw mYgzIn iqAwr krnw",null,5]
[null,"AiDAwpk v~loN skUl dy mYgzIn iqAwr krn iv`c Aqy pRkwiSq krvwaux iv`c sihXog dyx qy",5]
[15,"sYSn dOrwn pRsMsw p~qr/Avwrf pRwpq krn qy",null,10]
[null,"blwk/ qihsIl p~Dr qy",2]
[null,"ijlHw p~Dr qy",3]
[null,"styt p~Dr qy",5]
[null,"ivBwg dy au~c AiDkwrIAW qoN ivSyS pRsMsw p~qr pRwpq krn qy",10]
[null,"nYSnl Avwrf pRwpq krn qy",10]
[16,"AiDAwpk dw ividAwrQIAW dy mipAW nwl rwbqw",null,5]
[null,"SoSl mIfIAw rwhIN",1]
[null,"skUl iv`c mIitMgW rwhIN",1]
[null,"vtsAYp gru~p rwhIN",3]
[17,"AiDAwpk dI kimaUintI v~loN Awpxy skUl iv`c pwey Xogdwn dI SlwGw",null,5]
[null,"SoSl mIfIAw rwhIN",2]
[null,"ipRMt mIfIAw rwhIN",3]
[null,"ielYktRoinks mIfIAw rwhIN",5]
[18,"AiDAwpk v~loN isrP is~iKAw nwl sbMDq skwrwqimk AwrtIkl/lyK ipRMt mIfIAw iv`c pRkwiSq hox qy",null,5]
[null,"hr ie~k AwrtIkl/lyK pRkwiSq hox qy 01 nMbr",5]
[null,"is~iKAw Kyqr nwl sbMDq ie~k ikqwb pRkwSq hoxy qy",5]
[19,"skUL muKI jW ivBwg dy au~c AiDkwrIAW v~loN sONpy gey ivSyS kwrz nUM sPlqw pUrvk nypry cwVn qy",5,5]
[20,"AiDAwpk dI kMipaUtr iv`c muhwrq",5,5]
[21,"AiDAwpkW duAwrw skUl dI ibhqrI leI kimaUintI dy sihXog nwl kIqy gey kMmW dw vyrvw",null,10]
[null,"iek klws rUm dw suMdrIkrn jW buinAwdI FWcw iqAwr krn jW krvwaux qy",5]
[null,"skUL dI iemwrq dw suMdrIkrn jW buinAwdI FWcw iqAwr krn jW krvwaux qy",10]
[null,"skUl iv`c vyst mtIrIAl nUM vrqoN Xog bxwaux leI kIqy gey auprwilAW qy",5]
[]
[]
[]
[]
[]
[]
[]
[]
[]
[]
[]
[]
[]
[]
[]
[]
[]
[]
[]
[]
[]
[]
[]
[]
[]
[]
[]
[]
[]
[]
[]
[]
[]
[]
[]
[]
[]
[]
[]
[]
[]
[]
[]
[]
[]
[]
[]
[]
[]
[]
[]
[]
[]
[]
[]
[]
[]
[]
[]
[]
[]
[]
[]
[]
[]
[]
[]
[3,"AiDAwpn kwrz",null,20,7]
[null,"inrMqr Aqy imqI b~D kwpIAW dI jWc",4]
[null,"ivSy nwl sbMDq pRYktIkl PweIlW iv`c suMdr Aqy AwkrSk ic~qr bxwaux leI kIqy auprwilAW leI",4]
[null,"AiDAwpk fwierI",4]
[null,"svyr dI sBw iv`c BwSx (mhINny iv`c G~to-G~t do vwrI)",4]
[null,"AiDAwpk v~loN klws tYst lYx Aqy irkwrf myntyn krn qy (mhINny iv`c G~to-G~t do vwrI)",4]
[4,"ivSyS ijMmyvwrI/ieMcwrjiSp",null,10]
[null,"skwaUt,AYn.sI.sI., AYn.AYs.AYs. ieMcwrz",2]
[null,"dwKlw Kwrz ieMcwrz",2]
[null,"hwaUs ieMcwrz",2]
[null,"imf-fy-mIl ieMcwrz",2]
[null,"tweIm tybl ieMcrj",2]
[5,"ividAwrQIAW dIAW ivSyS jmwqW/kYNp leI kIqy gey au~dm",null,10]
[null,"srdIAW dIAW Cu~tIAW dOrwn ivSyS isKlweI kYNp/ jmwqW leI",2]
[null,"skUl smyN qoN pihlW jW bwAd jmwqW lgwaux leI",3]
[null,"grmIAW dIAW Cu~tIAW dOrwn smr kYNp/ jmwqW lgwaux leI (7-10 idn)",5]
[6,"ivSy nwl sbMDq v~K v~K idvs mnwauxw Aqy irkwrf myntyn krn qy",5,5]
[7,"skUl dw mYgzIn iqAwr krnw",null,5]
[null,"AiDAwpk v~loN skUl dy mYgzIn iqAwr krn iv`c Aqy pRkwiSq krvwaux iv`c sihXog dyx qy",5]
[8,"sYSn dOrwn pRsMsw p~qr/Avwrf pRwpq krn qy",null,10]
[null,"blwk/ qihsIl p~Dr qy",2]
[null,"ijlHw p~Dr qy",3]
[null,"styt p~Dr qy",5]
[null,"ivBwg dy au~c AiDkwrIAW qoN ivSyS pRsMsw p~qr pRwpq krn qy",10]
[null,"nYSnl Avwrf pRwpq krn qy",10]
[9,"AiDAwpk dw ividAwrQIAW dy mipAW nwl rwbqw",null,5]
[null,"SoSl mIfIAw rwhIN",1]
[null,"skUl iv`c mIitMgW rwhIN",1]
[null,"vtsAYp gru~p rwhIN",3]
[10,"AiDAwpk dI kimaUintI v~loN Awpxy skUl iv`c pwey Xogdwn dI SlwGw",null,5]
[null,"SoSl mIfIAw rwhIN",2]
[null,"ipRMt mIfIAw rwhIN",3]
[null,"ielYktRoinks mIfIAw rwhIN",5]
[11,"AiDAwpk v~loN isrP is~iKAw nwl sbMDq skwrwqimk AwrtIkl/lyK ipRMt mIfIAw iv`c pRkwiSq hox qy",null,10]
[null,"hr ie~k AwrtIkl/lyK pRkwiSq hox qy 01 nMbr",5]
[null,"is~iKAw Kyqr nwl sbMDq ie~k ikqwb pRkwSq hoxy qy",10]
[12,"skUL muKI jW ivBwg dy au~c AiDkwrIAW v~loN sONpy gey ivSyS kwrz nUM sPlqw pUrvk nypry cwVn qy",5,5]
[13,"AiDAwpk dI kMipaUtr iv`c muhwrq",5,5]
[14,"AiDAwpkW duAwrw skUl dI ibhqrI leI kimaUintI dy sihXog nwl kIqy gey kMmW dw vyrvw",null,10]
[null,"iek klws rUm dw suMdrIkrn jW buinAwdI FWcw iqAwr krn jW krvwaux qy",5]
[null,"skUL dI iemwrq dw suMdrIkrn jW buinAwdI FWcw iqAwr krn jW krvwaux qy",10]
[null,"skUl iv`c vyst mtIrIAl nUM vrqoN Xog bxwaux leI kIqy gey auprwilAW qy",5]
[15,"vokySnl lYkcrwr/AiDAwpk nwl sbMDq ivSyS gqIivDIAW",null,75]
[null,"vokySnl tRyf nwl sbMDq lYb sYt Ap krn Aqy sbMDq smwn auplbD krvwaux leI kIqy Xqn",10]
[null,"vokySnl lYb. iv~c mOjUd swjo smwn/XMqrW dI auicq vrqoN krn qy",5]
[null,"vokySnl tRyf nwl sbMDq iksy ieMfstrI dI ivzt krvwaux qy (sYSn dOrwn do ivzt)",10]
[null,"vokySnl tRyf dy pws AwaUt ividAwrQIAW dw irkwrf myntyn (Polo Ap) krn qy (ipCly pMj swlW dw)",5]
[null,"vokySnl tRyf dy ividAwrQIAW dI jOb plysmYNt leI kIqy XqnW leI",10]
[null,"AiDAwpk duAwrw mltImIfIAw rwhI pRYzntySn iqAwr krky b~icAW nUM pVHwaux leI kIqy auprwilAW leI",10]
[null,"vokySnl tRyf nwl sbMDq skUL iv`c kMm-kwr nUM pRPUlq krn leI AiDAwpk dI BwgIdwrI leI",5]
[null,"ivSy nwl sbMDq ividAWrQIAW nUM iqAwr krn qy Aqy iksy mukwbly iv`c pRwpqI krn qyy"]
[null,"blwk/ qihsIl p~Dr qy",2]
[null,"ijlHw p~Dr qy",3]
[null,"styt p~Dr qy",5]
[null,"ivSy nwl sbMDq iksy pROPYSnl SKSIAq nUM skUl dy ividAwrQIAW dy rU-brU krvwaux qy",10]
[]
[]
[]
[]
[]
[]
[]
[]
[]
[]
[]
[]
[]
[]
[]
[]
[]
[]
[]
[]
[]
[]
[]
[]
[]
[]
[]
[]
[]
[]
[]
[]
[]
[]
[]
[]
[]
[]
[]
[]
[]
[]
[]
[]
[]
[]
[]
[]
[]
[]
[]
[]
[]
[]
[]
[]
[]
[]
[]
[]
[]
[]
[]
[]
[]
[]
[]
[]
[]
[]
[]
[]
[]
[]
[]
[]
[]
[]
[]
[]
[]
[]
[]
[]
[]
[3,"AiDAwpn kwrz",null,20,9]
[null,"inrMqr Aqy imqI b~D kwpIAW dI jWc",4]
[null,"ivSy nwl sbMDq pRYktIkl PweIlW iv`c suMdr Aqy AwkrSk ic~qr bxwaux leI kIqy auprwilAW leI",4]
[null,"AiDAwpk fwierI",4]
[null,"svyr dI sBw iv`c BwSx (mhINny iv`c G~to-G~t do vwrI)",4]
[null,"AiDAwpk v~loN klws tYst lYx Aqy irkwrf myntyn krn qy (mhINny iv`c G~to-G~t do vwrI)",4]
[4,"ivSyS ijMmyvwrI/ieMcwrjiSp",null,10]
[null,"skwaUt,AYn.sI.sI., AYn.AYs.AYs. ieMcwrz",2]
[null,"dwKlw Kwrz ieMcwrz",2]
[null,"hwaUs ieMcwrz",2]
[null,"imf-fy-mIl ieMcwrz",2]
[null,"tweIm tybl ieMcrj",2]
[5,"ividAwrQIAW dIAW ivSyS jmwqW/kYNp leI kIqy gey au~dm",null,10]
[null,"srdIAW dIAW Cu~tIAW dOrwn ivSyS isKlweI kYNp/ jmwqW leI",2]
[null,"skUl smyN qoN pihlW jW bwAd jmwqW lgwaux leI",3]
[null,"grmIAW dIAW Cu~tIAW dOrwn smr kYNp/ jmwqW lgwaux leI (7-10 idn)",5]
[6,"ivSy nwl sbMDq v~K v~K idvs mnwauxw Aqy irkwrf myntyn krn qy",5,5]
[7,"skUl dw mYgzIn iqAwr krnw",null,5]
[null,"AiDAwpk v~loN skUl dy mYgzIn iqAwr krn iv`c Aqy pRkwiSq krvwaux iv`c sihXog dyx qy",5]
[8,"sYSn dOrwn pRsMsw p~qr/Avwrf pRwpq krn qy",null,10]
[null,"blwk/ qihsIl p~Dr qy",2]
[null,"ijlHw p~Dr qy",3]
[null,"styt p~Dr qy",5]
[null,"ivBwg dy au~c AiDkwrIAW qoN ivSyS pRsMsw p~qr pRwpq krn qy",10]
[null,"nYSnl Avwrf pRwpq krn qy",10]
[9,"AiDAwpk dw ividAwrQIAW dy mipAW nwl rwbqw",null,5]
[null,"SoSl mIfIAw rwhIN",1]
[null,"skUl iv`c mIitMgW rwhIN",1]
[null,"vtsAYp gru~p rwhIN",3]
[10,"AiDAwpk dI kimaUintI v~loN Awpxy skUl iv`c pwey Xogdwn dI SlwGw",null,5]
[null,"SoSl mIfIAw rwhIN",2]
[null,"ipRMt mIfIAw rwhIN",3]
[null,"ielYktRoinks mIfIAw rwhIN",5]
[11,"AiDAwpk v~loN isrP is~iKAw nwl sbMDq skwrwqimk AwrtIkl/lyK ipRMt mIfIAw iv`c pRkwiSq hox qy",null,10]
[null,"hr ie~k AwrtIkl/lyK pRkwiSq hox qy 01 nMbr",5]
[null,"is~iKAw Kyqr nwl sbMDq ie~k ikqwb pRkwSq hoxy qy",10]
[12,"skUL muKI jW ivBwg dy au~c AiDkwrIAW v~loN sONpy gey ivSyS kwrz nUM sPlqw pUrvk nypry cwVn qy",5,5]
[13,"AiDAwpk dI kMipaUtr iv`c muhwrq",5,5]
[14,"AiDAwpkW duAwrw skUl dI ibhqrI leI kimaUintI dy sihXog nwl kIqy gey kMmW dw vyrvw",null,10]
[null,"iek klws rUm dw suMdrIkrn jW buinAwdI FWcw iqAwr krn jW krvwaux qy",5]
[null,"skUL dI iemwrq dw suMdrIkrn jW buinAwdI FWcw iqAwr krn jW krvwaux qy",10]
[null,"skUl iv`c vyst mtIrIAl nUM vrqoN Xog bxwaux leI kIqy gey auprwilAW qy",5]
[15,"KyqIbwVI AiDAwpk nwl sbMDq gqIivDIAW",null,75]
[null,"KyqIbwVI nwl sbMDq Pilf ivzt krvwaux qy",5]
[null,"skUl iv`c ikcn gwrfn ivksq krn qy",5]
[null,"KyqIbwVI nwl sbMDq myly/sYmInwr/XnIvristI/Agro tYk dI ivzt krvwaux qy",10]
[null,"skUl iv`c PwlqU jgHw nUM vrqoN Xog bnwaux leI kIqy auprwilAW leI",10]
[null,"sYSn dOrwn skUl/ipMf iv`c nvyN drKq/bUty lgwaux iv`c kIqy auprwilAW leI",10]
[null,"KyqIbwVI iv`c kItnwSk dvweIAW dI G~t vrqoN/prwlI nUM nW swVn leI jwgrUk krn leI kIqy auprwilAW leI",10]
[null,"nvyN pOdy/pnIrI iqAwr krn Aqy hor skUlW nUM vI aupl~bD krvwaux leI kIqy auprwilAW leI",10]
[null,"skUl iv`c kMpoizt ip~t iqAwr krnw",5]
[null,"AiDAwpk dI AwpxI ikhVy Kyqr iv`c mhuwrq hY    .......... aus Kyqr iv`c sYSn dOrwn Kud dIAW aupl~bDIAW krn qy",5]
[null,"ivSy nwl sbMDq ividAwrQIAW nUM iqAwr krn qy Aqy ijlHy p~Dr dy iksy mukwbly iv`c pRwpqI krn-",5]
[null,"qy (isrP pihlI jW dUjI pujISn hwsl krn qy)"]
[15,"hom swieMs AiDAwpk nwl sbMDq gqIivDIAW",null,75]
[null,"hom swieMs nwl sbMDq iksy ieMfstrI dI ivzt krvwaux qy",10]
[null,"hom swieMs nwl sbMDq iksy kwlz/XunIvristI dI ivzt krvwaux qy",10]
[null,"ividAwrQIAW nUM pROPYSnl Aqy svY rojgwr leI iqAwr krn leI kIqy auprwilAW leI",5]
[null,"AiDAwpk duAwrw mltImIfIAw rwhI pRYzntySn iqAwr krky b~icAW nUM pVHwaux leI kIqy auprwilAW leI",10]
[null,"ivSy nwl sbMDq iksy pROPYSnl SKSIAq nUM skUl dy ividAwrQIAW dy rU-brU krvwaux qy",10]
[null,"skUl iv`c imf fy mIl iv`c sihXog dyx qy",5]
[null,"jMk Puf dI G~t vrqoN leI ividAwrQIAW nUM pRyrq krn leI kIqy auprwilAW qy",5]
[null,"AiDAwpk dI AwpxI ikhVy Kyqr iv`c mhuwrq hY    .......... aus Kyqr iv`c sYSn dOrwn Kud dIAW aupl~bDIAW krn qy",5]
[null,"ivSy nwl sbMDq ividAwrQIAW nUM iqAwr krn qy Aqy ijlHy p~Dr dy iksy mukwbly iv`c pRwpqI krn-",5]
[null," qy (isrP pihlI jW dUjI pujISn hwsl krn qy)"]
[null,"skUl iv`c nmUny dI hom swieMs lyb. ivkisq krn/r~K rKwA krn qy",10]
[15,"imaUijk AiDAwpk nwl sbMDq gqIivDIAW",null,75]
[null,"svyr dI sBw iv`c pRBwv pUrn qrIky nwl rwStrI gIq, sbd gwien krvwaux qy",10]
[null,"svyr dI sBw iv`c imaUjIkl swzW dI vrqoN krn qy (frMm bIt, hrmonIAm, qblw, lwaUf spIkr Awid)",5]
[null,"v~K v~K smwrohW leI ividAwrQIAW dI isKlweI krvwaux qy",10]
[null,"skUl dI bYNf tIm iqAwr krn qy",5]
[null,"AiDAwpk dI AwpxI ikhVy Kyqr iv`c mhuwrq hY    .......... aus Kyqr iv`c sYSn dOrwn Kud dIAW aupl~bDIAW krn qy",5]
[null,"ivSy nwl sbMDq ividAwrQIAW nUM iqAwr krn qy Aqy ijlHy p~Dr dy iksy mukwbly iv`c pRwpqI -",5]
[null,"krn qy (isrP pihlI jW dUjI pujISn hwsl krn qy)"]
[null,"skUl iv`c imaUijk rUm sQwipq krn/r~K rKwA krn qy",10]
[null,"ividAwrQIAw nUM iksy kwlz/XunIvristI dy sMgIq ivBwg dI ivzt krvwaux qy",10]
[null,"ividAwrQIAW nUM pROPYSnl Aqy svY rojgwr leI iqAwr krn leI kIqy auprwilAW qy",5]
[null,"ivSy nwl sbMDq iksy pROPYSnl SKSIAq nUM skUl dy ividAwrQIAW dy rU-brU krvwaux qy",10]